fUSD/lending_fUSD_20250616
["ID","MTS","AMOUNT","RATE_DAILY","PERIOD"]
[366054981,1750037437479,-916.37,0.00016438,2]
[366054982,1750037437490,-490.0,0.00016438,2]
[366054983,1750037437500,-1000.0,0.00016438,2]
[366054984,1750037437511,-490.0,0.00016438,2]
[366054985,1750037437522,-1407.0,0.00016438,2]
[366054986,1750037437533,-196.70315412,0.00016438,2]
[366054987,1750037437543,-490.0,0.00016438,2]
[366054988,1750037437554,-490.0,0.00016438,2]
[366054989,1750037437564,-490.0,0.00016438,2]
[366054990,1750037437575,-506.99,0.00016438,2]
[366054991,1750037437586,-490.0,0.00016438,2]
[366054992,1750037437596,-490.0,0.00016438,2]
[366054993,1750037437607,-605.47963399,0.00016438,2]
[366054994,1750037437617,-1206.51,0.00016438,2]
[366054995,1750037437627,-490.0,0.00016438,2]
[366054996,1750037437638,-490.0,0.00016438,2]
[366054997,1750037437648,-490.0,0.00016438,2]
[366054998,1750037437659,-1165.46554764,0.00016438,2]
[366054999,1750037437693,-751.13445236,0.00016438,2]
[366055000,1750037437704,-173.54269364,0.00016438,2]
[366055081,1750037440449,-157.06143303,0.00016377,2]
[366055082,1750037440462,-191.42957722,0.00016431,2]
[366055083,1750037440472,-500.0,0.00016431,2]
[366055084,1750037440482,-505.38139899,0.00016431,2]
[366055085,1750037440491,-208.72801191,0.00016431,2]
[366055086,1750037440503,-250.18901047,0.00016431,2]
[366055087,1750037440515,-41.08297762,0.00016431,2]
[366055088,1750037440525,-500.0,0.00016431,2]
[366055089,1750037440534,-389.55198718,0.00016431,2]
[366055090,1750037440544,-500.0,0.00016431,2]
[366055091,1750037440554,-500.0,0.00016431,2]
[366055092,1750037440564,-500.0,0.00016431,2]
[366055093,1750037440575,-428.58713247,0.00016431,2]
[366055094,1750037440585,-500.0,0.00016431,2]
[366055095,1750037440595,-500.0,0.00016431,2]
[366055096,1750037440605,-500.0,0.00016431,2]
[366055097,1750037440616,-500.0,0.00016431,2]
[366055098,1750037440626,-500.0,0.00016431,2]
[366055099,1750037440635,-500.0,0.00016431,2]
[366055100,1750037440645,-500.0,0.00016431,2]
[366055101,1750037440654,-500.0,0.00016431,2]
[366055102,1750037440665,-500.0,0.00016431,2]
[366055103,1750037440675,-500.0,0.00016431,2]
[366055104,1750037440684,-500.0,0.00016431,2]
[366055105,1750037440693,-150.99006832,0.00016431,2]
[366055106,1750037440703,-500.0,0.00016431,2]
[366055107,1750037440712,-500.0,0.00016431,2]
[366055108,1750037440722,-500.0,0.00016431,2]
[366055109,1750037440731,-500.0,0.00016431,2]
[366055110,1750037440741,-500.0,0.00016431,2]
[366055111,1750037440751,-500.0,0.00016431,2]
[366055112,1750037440761,-500.0,0.00016431,2]
[366055113,1750037440770,-500.0,0.00016431,2]
[366055114,1750037440780,-500.0,0.00016431,2]
[366055115,1750037440790,-500.0,0.00016431,2]
[366055116,1750037440800,-500.0,0.00016431,2]
[366055117,1750037440809,-500.0,0.00016431,2]
[366055118,1750037440818,-500.0,0.00016431,2]
[366055119,1750037440828,-500.0,0.00016431,2]
[366055120,1750037440837,-463.38055465,0.00016431,2]
[366055121,1750037440846,-500.0,0.00016431,2]
[366055122,1750037440856,-500.0,0.00016431,2]
[366055123,1750037440865,-500.0,0.00016431,2]
[366055124,1750037440874,-500.0,0.00016431,2]
[366055125,1750037440883,-500.0,0.00016431,2]
[366055126,1750037440892,-500.0,0.00016431,2]
[366055127,1750037440901,-500.0,0.00016431,2]
[366055128,1750037440911,-500.0,0.00016431,2]
[366055129,1750037440920,-500.0,0.00016431,2]
[366055130,1750037440929,-500.0,0.00016431,2]
[366055131,1750037440939,-316.45730636,0.00016438,2]
[366055132,1750037440948,-430.0,0.00016438,2]
[366055133,1750037440958,-982.22,0.00016438,2]
[366055134,1750037440967,-490.0,0.00016438,2]
[366055135,1750037440976,-1393.78,0.00016438,2]
[366055136,1750037440985,-490.0,0.00016438,2]
[366055137,1750037440995,-490.0,0.00016438,2]
[366055138,1750037441004,-280.16225236,0.00016438,2]
[366055139,1750037441013,-490.0,0.00016438,2]
[366055140,1750037441022,-1462.58,0.00016438,2]
[366055141,1750037441031,-1167.14,0.00016438,2]
[366055142,1750037441040,-490.0,0.00016438,2]
[366055143,1750037441049,-490.0,0.00016438,2]
[366055144,1750037441059,-490.0,0.00016438,2]
[366055145,1750037441067,-490.0,0.00016438,2]
[366055146,1750037441077,-490.0,0.00016438,2]
[366055147,1750037441086,-225.35794086,0.00016438,2]
[366055148,1750037441096,-1671.86,0.00016438,2]
[366055149,1750037441105,-490.0,0.00016438,2]
[366055150,1750037441114,-490.0,0.00016438,2]
[366055151,1750037441123,-490.0,0.00016438,2]
[366055152,1750037441132,-490.0,0.00016438,2]
[366055153,1750037441141,-1129.75,0.00016438,2]
[366055154,1750037441150,-743.78,0.00016438,2]
[366055155,1750037441160,-490.0,0.00016438,2]
[366055156,1750037441170,-490.0,0.00016438,2]
[366055157,1750037441179,-1012.83,0.00016438,2]
[366055158,1750037441188,-495.00785732,0.00016438,2]
[366055159,1750037441197,-490.0,0.00016438,2]
[366055160,1750037441207,-1683.05,0.00016438,2]
[366055161,1750037441216,-490.0,0.00016438,2]
[366055162,1750037441225,-490.0,0.00016438,2]
[366055163,1750037441234,-490.0,0.00016438,2]
[366055164,1750037441244,-490.0,0.00016438,2]
[366055165,1750037441254,-183.631896,0.00016438,2]
[366055166,1750037441263,-490.0,0.00016438,2]
[366055167,1750037441273,-1735.74,0.00016438,2]
[366055168,1750037441283,-490.0,0.00016438,2]
[366055169,1750037441293,-490.0,0.00016438,2]
[366055170,1750037441302,-699.2,0.00016438,2]
[366055171,1750037441311,-490.0,0.00016438,2]
[366055172,1750037441321,-743.83,0.00016438,2]
[366055173,1750037441330,-490.0,0.00016438,2]
[366055174,1750037441340,-490.0,0.00016438,2]
[366055175,1750037441353,-490.0,0.00016438,2]
[366055176,1750037441363,-490.0,0.00016438,2]
[366055177,1750037441372,-435.17121197,0.00016438,2]
[366055178,1750037441388,-794.44878803,0.00016438,2]
[366055179,1750037441397,-171.76228064,0.00016438,2]
[366055180,1750037441479,-476.39771936,0.00016438,2]
[366055181,1750037441488,-564.73,0.00016438,2]
[366055182,1750037441498,-490.0,0.00016438,2]
[366055183,1750037441508,-129.57228064,0.00016438,2]
[366055184,1750037441520,-360.42771936,0.00016438,2]
[366055185,1750037441530,-490.0,0.00016438,2]
[366055186,1750037441539,-1898.76,0.00016438,2]
[366055187,1750037441549,-1406.93,0.00016438,2]
[366055188,1750037441558,-1266.61,0.00016438,2]
[366055189,1750037441567,-1298.12,0.00016438,2]
[366055190,1750037441577,-490.0,0.00016438,2]
[366055191,1750037441586,-490.0,0.00016438,2]
[366055192,1750037441596,-490.0,0.00016438,2]
[366055193,1750037441605,-490.0,0.00016438,2]
[366055194,1750037441614,-583.17,0.00016438,2]
[366055195,1750037441624,-490.0,0.00016438,2]
[366055196,1750037441633,-500.0,0.00016438,2]
[366055197,1750037441643,-500.0,0.00016438,2]
[366055198,1750037441652,-554.73,0.00016438,2]
[366055199,1750037441661,-490.0,0.00016438,2]
[366055200,1750037441670,-490.0,0.00016438,2]
[366055201,1750037441680,-490.0,0.00016438,2]
[366055202,1750037441690,-835.83,0.00016438,2]
[366055203,1750037441700,-2159.68,0.00016438,2]
[366055204,1750037441711,-490.0,0.00016438,2]
[366055205,1750037441720,-688.5,0.00016438,2]
[366055206,1750037441730,-490.0,0.00016438,2]
[366055207,1750037441741,-1236.22,0.00016438,2]
[366055208,1750037441750,-588.17,0.00016438,2]
[366055209,1750037441759,-526.47,0.00016438,2]
[366055210,1750037441768,-616.0,0.00016438,2]
[366055211,1750037441778,-553.67,0.00016438,2]
[366055212,1750037441787,-258.64707557,0.00016438,2]
[366055213,1750037441834,-231.35292443,0.00016438,2]
[366055214,1750037441845,-298.29707557,0.00016438,2]
[366055215,1750037441857,-472.58292443,0.00016438,2]
[366055216,1750037441867,-672.92,0.00016438,2]
[366055217,1750037441877,-49.30457901,0.00016438,2]
[366055232,1750037442607,-440.69542099,0.00016438,2]
[366055233,1750037442617,-5.32549138,0.00016438,2]
[366055234,1750037442628,-1197.18450862,0.00016438,2]
[366055235,1750037442637,-490.0,0.00016438,2]
[366055236,1750037442647,-1230.0,0.00016438,2]
[366055237,1750037442656,-204.68352728,0.00016438,2]
[366055238,1750037442673,-285.31647272,0.00016438,2]
[366055239,1750037442683,-1480.96,0.00016438,2]
[366055240,1750037442692,-657.65,0.00016438,2]
[366055241,1750037442702,-1497.68,0.00016438,2]
[366055242,1750037442712,-490.0,0.00016438,2]
[366055243,1750037442721,-490.0,0.00016438,2]
[366055244,1750037442730,-1373.88,0.00016438,2]
[366055245,1750037442740,-1203.37009707,0.00016438,2]
[366055246,1750037442751,-19.16990293,0.00016438,2]
[366055247,1750037442761,-490.0,0.00016438,2]
[366055248,1750037442771,-876.41,0.00016438,2]
[366055249,1750037442780,-490.0,0.00016438,2]
[366055250,1750037442790,-490.0,0.00016438,2]
[366055251,1750037442800,-828.9,0.00016438,2]
[366055252,1750037442809,-944.16,0.00016438,2]
[366055253,1750037442819,-490.0,0.00016438,2]
[366055254,1750037442829,-646.35,0.00016438,2]
[366055255,1750037442838,-490.0,0.00016438,2]
[366055256,1750037442848,-490.0,0.00016438,2]
[366055257,1750037442857,-490.0,0.00016438,2]
[366055258,1750037442867,-601.75,0.00016438,2]
[366055259,1750037442876,-490.0,0.00016438,2]
[366055260,1750037442886,-490.0,0.00016438,2]
[366055261,1750037442896,-490.0,0.00016438,2]
[366055262,1750037442906,-490.0,0.00016438,2]
[366055263,1750037442919,-490.0,0.00016438,2]
[366055264,1750037442928,-1427.19,0.00016438,2]
[366055265,1750037442938,-585.77,0.00016438,2]
[366055266,1750037442948,-930.75,0.00016438,2]
[366055267,1750037442958,-490.0,0.00016438,2]
[366055268,1750037442968,-796.36,0.00016438,2]
[366055269,1750037442978,-568.55,0.00016438,2]
[366055270,1750037442989,-404.72653228,0.00016438,2]
[366055271,1750037442999,-490.0,0.00016438,2]
[366055272,1750037443009,-490.0,0.00016438,2]
[366055273,1750037443019,-490.0,0.00016438,2]
[366055274,1750037443028,-490.0,0.00016438,2]
[366055275,1750037443038,-490.0,0.00016438,2]
[366055276,1750037443047,-897.66,0.00016438,2]
[366055277,1750037443057,-2562.48,0.00016438,2]
[366055278,1750037443067,-1078.37,0.00016438,2]
[366055279,1750037443076,-544.71,0.00016438,2]
[366055280,1750037443086,-818.62,0.00016438,2]
[366055281,1750037443096,-492.07563509,0.00016438,2]
[366055282,1750037443105,-2058.38,0.00016438,2]
[366055283,1750037443116,-490.0,0.00016438,2]
[366055284,1750037443126,-490.0,0.00016438,2]
[366055285,1750037443136,-490.0,0.00016438,2]
[366055286,1750037443145,-407.33791481,0.00016438,2]
[366055287,1750037443162,-585.81208519,0.00016438,2]
[366055288,1750037443172,-490.0,0.00016438,2]
[366055289,1750037443183,-983.15,0.00016438,2]
[366055290,1750037443193,-490.0,0.00016438,2]
[366055291,1750037443203,-1360.13,0.00016438,2]
[366055292,1750037443213,-490.0,0.00016438,2]
[366055293,1750037443224,-1398.62,0.00016438,2]
[366055294,1750037443234,-490.0,0.00016438,2]
[366055295,1750037443244,-490.0,0.00016438,2]
[366055296,1750037443255,-484.43948048,0.00016438,2]
[366055297,1750037443266,-490.0,0.00016438,2]
[366055298,1750037443275,-490.0,0.00016438,2]
[366055299,1750037443285,-609.76,0.00016438,2]
[366055300,1750037443295,-698.11,0.00016438,2]
[366055301,1750037443305,-610.07,0.00016438,2]
[366055302,1750037443316,-751.14,0.00016438,2]
[366055303,1750037443327,-577.49,0.00016438,2]
[366055304,1750037443336,-1246.14,0.00016438,2]
[366055305,1750037443347,-2377.01348905,0.00016438,2]
[366055306,1750037443363,-229.55651095,0.00016438,2]
[366055307,1750037443372,-490.0,0.00016438,2]
[366055308,1750037443383,-490.0,0.00016438,2]
[366055309,1750037443393,-1510.84,0.00016438,2]
[366055310,1750037443403,-490.0,0.00016438,2]
[366055311,1750037443415,-789.38,0.00016438,2]
[366055312,1750037443425,-490.0,0.00016438,2]
[366055313,1750037443434,-490.0,0.00016438,2]
[366055314,1750037443445,-490.0,0.00016438,2]
[366055315,1750037443455,-490.0,0.00016438,2]
[366055316,1750037443464,-490.0,0.00016438,2]
[366055317,1750037443474,-490.0,0.00016438,2]
[366055318,1750037443483,-1401.3,0.00016438,2]
[366055319,1750037443493,-707.1,0.00016438,2]
[366055320,1750037443503,-1762.5,0.00016438,2]
[366055321,1750037443519,-490.0,0.00016438,2]
[366055322,1750037443528,-635.72,0.00016438,2]
[366055323,1750037443538,-1685.21,0.00016438,2]
[366055324,1750037443548,-490.0,0.00016438,2]
[366055325,1750037443559,-490.0,0.00016438,2]
[366055326,1750037443569,-490.0,0.00016438,2]
[366055327,1750037443579,-800.07,0.00016438,2]
[366055328,1750037443588,-1443.54,0.00016438,2]
[366055329,1750037443598,-490.0,0.00016438,2]
[366055330,1750037443607,-623.84,0.00016438,2]
[366055331,1750037443617,-490.0,0.00016438,2]
[366055332,1750037443626,-490.0,0.00016438,2]
[366055333,1750037443636,-518.46,0.00016438,2]
[366055334,1750037443646,-490.0,0.00016438,2]
[366055335,1750037443655,-732.84,0.00016438,2]
[366055336,1750037443667,-1782.7,0.00016438,2]
[366055337,1750037443676,-2223.03,0.00016438,2]
[366055338,1750037443686,-535.02,0.00016438,2]
[366055339,1750037443696,-929.49,0.00016438,2]
[366055340,1750037443705,-490.0,0.00016438,2]
[366055341,1750037443715,-517.34964582,0.00016438,2]
[366055342,1750037443728,-262.76035418,0.00016438,2]
[366055343,1750037443737,-609.22445382,0.00016438,2]
[366055344,1750037444044,-500.0,0.00016431,2]
[366055345,1750037444055,-146.08261484,0.00016431,2]
[366055346,1750037444087,-353.91738516,0.00016431,2]
[366055347,1750037444097,-500.0,0.00016431,2]
[366055348,1750037444109,-250.43629246,0.00016431,2]
[366055349,1750037444120,-1923.68554618,0.00016438,2]
[366055350,1750037444129,-490.0,0.00016438,2]
[366055351,1750037444142,-490.0,0.00016438,2]
[366055352,1750037444152,-793.52,0.00016438,2]
[366055353,1750037444162,-2118.21,0.00016438,2]
[366055354,1750037444171,-416.57967456,0.00016438,2]
[366055355,1750037444182,-490.0,0.00016438,2]
[366055356,1750037444193,-490.0,0.00016438,2]
[366055357,1750037444204,-704.87,0.00016438,2]
[366055358,1750037444214,-490.0,0.00016438,2]
[366055359,1750037444225,-664.26,0.00016438,2]
[366055360,1750037444236,-490.0,0.00016438,2]
[366055361,1750037444246,-1336.21,0.00016438,2]
[366055362,1750037444256,-753.77,0.00016438,2]
[366055363,1750037444265,-490.0,0.00016438,2]
[366055364,1750037444275,-1319.87,0.00016438,2]
[366055365,1750037444284,-490.0,0.00016438,2]
[366055366,1750037444296,-490.0,0.00016438,2]
[366055367,1750037444306,-490.0,0.00016438,2]
[366055368,1750037444316,-490.0,0.00016438,2]
[366055369,1750037444326,-540.04,0.00016438,2]
[366055370,1750037444336,-490.0,0.00016438,2]
[366055371,1750037444347,-752.84,0.00016438,2]
[366055372,1750037444360,-490.0,0.00016438,2]
[366055373,1750037444371,-637.06,0.00016438,2]
[366055374,1750037444382,-520.39,0.00016438,2]
[366055375,1750037444393,-1437.56,0.00016438,2]
[366055376,1750037444403,-2323.46,0.00016438,2]
[366055377,1750037444414,-490.0,0.00016438,2]
[366055378,1750037444423,-565.2,0.00016438,2]
[366055379,1750037444434,-1383.07,0.00016438,2]
[366055380,1750037444444,-490.0,0.00016438,2]
[366055381,1750037444454,-510.24,0.00016438,2]
[366055382,1750037444463,-490.0,0.00016438,2]
[366055383,1750037444473,-1176.09,0.00016438,2]
[366055384,1750037444483,-642.02,0.00016438,2]
[366055385,1750037444492,-490.0,0.00016438,2]
[366055386,1750037444502,-490.0,0.00016438,2]
[366055387,1750037444511,-2336.6,0.00016438,2]
[366055388,1750037444521,-490.0,0.00016438,2]
[366055389,1750037444531,-492.47,0.00016438,2]
[366055390,1750037444541,-1045.3,0.00016438,2]
[366055391,1750037444551,-600.86,0.00016438,2]
[366055392,1750037444560,-490.0,0.00016438,2]
[366055393,1750037444569,-490.0,0.00016438,2]
[366055394,1750037444579,-1518.7,0.00016438,2]
[366055395,1750037444588,-577.53,0.00016438,2]
[366055396,1750037444598,-490.0,0.00016438,2]
[366055397,1750037444607,-490.0,0.00016438,2]
[366055398,1750037444617,-490.0,0.00016438,2]
[366055399,1750037444627,-490.0,0.00016438,2]
[366055400,1750037444636,-490.0,0.00016438,2]
[366055401,1750037444645,-490.0,0.00016438,2]
[366055402,1750037444654,-490.0,0.00016438,2]
[366055403,1750037444666,-490.0,0.00016438,2]
[366055404,1750037444676,-595.11,0.00016438,2]
[366055405,1750037444686,-490.0,0.00016438,2]
[366055406,1750037444696,-643.91,0.00016438,2]
[366055407,1750037444706,-725.78,0.00016438,2]
[366055408,1750037444715,-583.28,0.00016438,2]
[366055409,1750037444725,-693.68,0.00016438,2]
[366055410,1750037444735,-490.0,0.00016438,2]
[366055411,1750037444745,-2129.48,0.00016438,2]
[366055412,1750037444754,-490.0,0.00016438,2]
[366055413,1750037444764,-576.61,0.00016438,2]
[366055414,1750037444773,-490.0,0.00016438,2]
[366055415,1750037444782,-1608.34,0.00016438,2]
[366055416,1750037444793,-603.63648185,0.00016438,2]
[366055417,1750037444802,-490.0,0.00016438,2]
[366055418,1750037444812,-632.63,0.00016438,2]
[366055419,1750037444821,-490.0,0.00016438,2]
[366055420,1750037445199,-1138.22,0.00016438,2]
[366055421,1750037445231,-1714.78,0.00016438,2]
[366055422,1750037445242,-490.0,0.00016438,2]
[366055424,1750037445252,-490.0,0.00016438,2]
[366055426,1750037445262,-726.61,0.00016438,2]
[366055428,1750037445272,-490.0,0.00016438,2]
[366055431,1750037445282,-593.81,0.00016438,2]
[366055432,1750037445292,-490.0,0.00016438,2]
[366055433,1750037445302,-490.0,0.00016438,2]
[366055434,1750037445311,-490.0,0.00016438,2]
[366055435,1750037445320,-490.0,0.00016438,2]
[366055436,1750037445330,-1143.49,0.00016438,2]
[366055437,1750037445340,-460.0,0.00016438,2]
[366055438,1750037445352,-1198.62,0.00016438,2]
[366055440,1750037445362,-490.0,0.00016438,2]
[366055441,1750037445372,-1566.92,0.00016438,2]
[366055442,1750037445381,-569.09,0.00016438,2]
[366055443,1750037445391,-490.0,0.00016438,2]
[366055444,1750037445401,-490.0,0.00016438,2]
[366055445,1750037445410,-1567.29,0.00016438,2]
[366055446,1750037445420,-693.52,0.00016438,2]
[366055447,1750037445431,-490.0,0.00016438,2]
[366055448,1750037445441,-490.0,0.00016438,2]
[366055449,1750037445451,-490.0,0.00016438,2]
[366055450,1750037445460,-559.81,0.00016438,2]
[366055451,1750037445469,-490.0,0.00016438,2]
[366055453,1750037445480,-835.05,0.00016438,2]
[366055454,1750037445489,-599.94,0.00016438,2]
[366055455,1750037445499,-1337.9,0.00016438,2]
[366055456,1750037445509,-792.19,0.00016438,2]
[366055457,1750037445520,-490.0,0.00016438,2]
[366055458,1750037445530,-490.0,0.00016438,2]
[366055459,1750037445541,-754.19,0.00016438,2]
[366055460,1750037445551,-490.0,0.00016438,2]
[366055461,1750037445564,-490.0,0.00016438,2]
[366055462,1750037445573,-1252.19,0.00016438,2]
[366055463,1750037445583,-490.0,0.00016438,2]
[366055464,1750037445593,-490.0,0.00016438,2]
[366055465,1750037445604,-490.0,0.00016438,2]
[366055466,1750037445616,-490.0,0.00016438,2]
[366055467,1750037445627,-512.39,0.00016438,2]
[366055468,1750037445638,-552.13,0.00016438,2]
[366055469,1750037445649,-1978.17,0.00016438,2]
[366055470,1750037445658,-2027.56,0.00016438,2]
[366055471,1750037445669,-528.32,0.00016438,2]
[366055472,1750037445678,-490.0,0.00016438,2]
[366055473,1750037445687,-490.0,0.00016438,2]
[366055474,1750037445697,-490.0,0.00016438,2]
[366055475,1750037445706,-2358.19,0.00016438,2]
[366055476,1750037445715,-490.0,0.00016438,2]
[366055477,1750037445724,-490.0,0.00016438,2]
[366055478,1750037445735,-632.63,0.00016438,2]
[366055479,1750037445744,-490.0,0.00016438,2]
[366055480,1750037445755,-1635.15,0.00016438,2]
[366055481,1750037445764,-490.0,0.00016438,2]
[366055482,1750037445773,-490.0,0.00016438,2]
[366055483,1750037445783,-392.70107891,0.00016438,2]
[366055485,1750037445794,-545.95,0.00016438,2]
[366055486,1750037445803,-1686.04,0.00016438,2]
[366055487,1750037445813,-490.0,0.00016438,2]
[366055488,1750037445822,-1252.24,0.00016438,2]
[366055489,1750037445832,-490.0,0.00016438,2]
[366055490,1750037445842,-1482.88,0.00016438,2]
[366055491,1750037445852,-490.0,0.00016438,2]
[366055492,1750037445861,-842.86,0.00016438,2]
[366055493,1750037445870,-490.0,0.00016438,2]
[366055494,1750037445880,-490.0,0.00016438,2]
[366055495,1750037445890,-2208.39,0.00016438,2]
[366055496,1750037445899,-267.94509041,0.00016438,2]
[366055497,1750037445908,-1638.47,0.00016438,2]
[366055498,1750037445919,-490.0,0.00016438,2]
[366055499,1750037445928,-490.0,0.00016438,2]
[366055500,1750037445938,-490.0,0.00016438,2]
[366055501,1750037445947,-490.0,0.00016438,2]
[366055502,1750037445956,-625.18,0.00016438,2]
[366055503,1750037445966,-490.0,0.00016438,2]
[366055504,1750037445975,-490.0,0.00016438,2]
[366055505,1750037445984,-490.0,0.00016438,2]
[366055506,1750037445994,-1352.51,0.00016438,2]
[366055507,1750037446003,-490.0,0.00016438,2]
[366055508,1750037446012,-490.0,0.00016438,2]
[366055509,1750037446022,-490.0,0.00016438,2]
[366055510,1750037446031,-490.0,0.00016438,2]
[366055511,1750037446042,-1134.59,0.00016438,2]
[366055512,1750037446052,-490.0,0.00016438,2]
[366055513,1750037446062,-557.5,0.00016438,2]
[366055514,1750037446071,-490.0,0.00016438,2]
[366055515,1750037446081,-490.0,0.00016438,2]
[366055516,1750037446091,-490.0,0.00016438,2]
[366055517,1750037446102,-490.0,0.00016438,2]
[366055518,1750037446112,-490.0,0.00016438,2]
[366055519,1750037446122,-2036.45,0.00016438,2]
[366055520,1750037446133,-490.0,0.00016438,2]
[366055521,1750037446145,-1779.86,0.00016438,2]
[366055522,1750037446155,-1113.24,0.00016438,2]
[366055523,1750037446171,-490.0,0.00016438,2]
[366055524,1750037446182,-9402.93,0.00016438,2]
[366055525,1750037446194,-832.65,0.00016438,2]
[366055526,1750037446205,-490.0,0.00016438,2]
[366055527,1750037446216,-490.0,0.00016438,2]
[366055528,1750037446227,-1199.57,0.00016438,2]
[366055529,1750037446238,-490.0,0.00016438,2]
[366055530,1750037446248,-490.0,0.00016438,2]
[366055531,1750037446258,-151.0,0.00016438,2]
[366055532,1750037446268,-1183.78,0.00016438,2]
[366055533,1750037446279,-873.75,0.00016438,2]
[366055534,1750037446290,-490.0,0.00016438,2]
[366055535,1750037446300,-1262.18,0.00016438,2]
[366055536,1750037446310,-490.0,0.00016438,2]
[366055537,1750037446320,-1056.53,0.00016438,2]
[366055538,1750037446331,-490.0,0.00016438,2]
[366055539,1750037446341,-1589.64,0.00016438,2]
[366055540,1750037446353,-2099.42,0.00016438,2]
[366055541,1750037446363,-490.0,0.00016438,2]
[366055542,1750037446373,-1758.44,0.00016438,2]
[366055543,1750037446383,-2100.78,0.00016438,2]
[366055544,1750037446393,-490.0,0.00016438,2]
[366055545,1750037446403,-694.05,0.00016438,2]
[366055546,1750037446419,-490.0,0.00016438,2]
[366055547,1750037446431,-2431.17,0.00016438,2]
[366055548,1750037446442,-490.0,0.00016438,2]
[366055549,1750037446451,-490.0,0.00016438,2]
[366055550,1750037446461,-541.46,0.00016438,2]
[366055551,1750037446471,-905.05,0.00016438,2]
[366055552,1750037446481,-490.0,0.00016438,2]
[366055553,1750037446491,-2041.56,0.00016438,2]
[366055554,1750037446501,-910.5,0.00016438,2]
[366055555,1750037446511,-490.0,0.00016438,2]
[366055556,1750037446520,-662.48,0.00016438,2]
[366055557,1750037446530,-499.23,0.00016438,2]
[366055558,1750037446540,-490.0,0.00016438,2]
[366055559,1750037446551,-3770.15,0.00016438,2]
[366055560,1750037446560,-490.0,0.00016438,2]
[366055561,1750037446570,-1701.88,0.00016438,2]
[366055562,1750037446580,-490.0,0.00016438,2]
[366055563,1750037446589,-432.01681633,0.00016438,2]
[366055564,1750037446599,-5256.97,0.00016438,2]
[366055565,1750037446608,-433.89368163,0.00016438,2]
[366055566,1750037446618,-576.52,0.00016438,2]
[366055567,1750037446627,-1159.01,0.00016438,2]
[366055568,1750037446637,-773.36,0.00016438,2]
[366055569,1750037446646,-752.78,0.00016438,2]
[366055570,1750037446655,-2798.3,0.00016438,2]
[366055571,1750037446669,-490.0,0.00016438,2]
[366055572,1750037446679,-1571.55,0.00016438,2]
[366055573,1750037446688,-7756.35,0.00016438,2]
[366055574,1750037446699,-1294.94,0.00016438,2]
[366055575,1750037446708,-490.0,0.00016438,2]
[366055576,1750037446718,-1316.23,0.00016438,2]
[366055577,1750037446728,-490.0,0.00016438,2]
[366055578,1750037446738,-681.17,0.00016438,2]
[366055579,1750037446747,-2667.13,0.00016438,2]
[366055580,1750037446756,-234.46936077,0.00016438,2]
[366055581,1750037446766,-1784.67,0.00016438,2]
[366055582,1750037446776,-3045.18,0.00016438,2]